fUSD/lending_fUSD_20251017
["ID","MTS","AMOUNT","RATE_DAILY","PERIOD"]
[391614265,1760706658128,-500.0,0.00015017,2]
[391614266,1760706658138,-500.0,0.00015017,2]
[391614267,1760706658148,-150.0,0.00015017,2]
[391614268,1760706658158,-151.0,0.00015042,2]
[391614269,1760706658168,-151.0,0.00015043,2]
[391614270,1760706658178,-151.0,0.00015044,2]
[391614271,1760706658188,-151.0,0.00015045,2]
[391614272,1760706658199,-150.0,0.00015046,2]
[391614273,1760706658208,-150.0,0.00015046,2]
[391614274,1760706658218,-150.0,0.00015046,2]
[391614275,1760706658228,-150.0,0.00015046,2]
[391614276,1760706658237,-4800.0,0.00015046,2]
[391614277,1760706658248,-10652.17309792,0.00015065,2]
[391614278,1760706658259,-150.0,0.00015072,2]
[391614279,1760706658269,-500.0,0.00015072,2]
[391614280,1760706658279,-500.0,0.00015072,2]
[391614281,1760706658289,-500.0,0.00015072,2]
[391614282,1760706658299,-500.0,0.00015072,2]
[391614283,1760706658310,-150.0,0.00015072,2]
[391614284,1760706658319,-5888.0,0.00015073,2]
[391614285,1760706658330,-1207.1316469,0.00015087,2]
[391614286,1760706658339,-15230.94405185,0.0001509,2]
[391614287,1760706658349,-200.0,0.00015101,2]
[391614288,1760706658358,-150.0,0.00015101,2]
[391614289,1760706658368,-200.0,0.00015101,2]
[391614290,1760706658379,-200.0,0.00015101,2]
[391614291,1760706658390,-11046.30350255,0.0001512,2]
[391614292,1760706658401,-150.0,0.00015126,2]
[391614293,1760706658411,-500.0,0.00015126,2]
[391614294,1760706658421,-500.0,0.00015126,2]
[391614295,1760706658431,-193.88007047,0.00015126,2]
[391614296,1760706658442,-500.0,0.00015126,2]
[391614297,1760706658452,-150.0,0.00015126,2]
[391614298,1760706658462,-150.0,0.00015155,2]
[391614299,1760706658472,-183.89,0.00015159,2]
[391614300,1760706658482,-11455.01673214,0.00015175,2]
[391614301,1760706658492,-1564.54824212,0.0001518,2]
[391614302,1760706658502,-150.0,0.00015181,2]
[391614303,1760706658512,-500.0,0.00015181,2]
[391614304,1760706658522,-500.0,0.00015181,2]
[391614305,1760706658532,-500.0,0.00015181,2]
[391614306,1760706658541,-150.0,0.00015181,2]
[391614307,1760706658551,-910.33,0.0001519,2]
[391614308,1760706658561,-1000.0,0.0001521,2]
[391614309,1760706658570,-163.0,0.0001521,2]
[391614310,1760706658580,-11878.85235123,0.0001523,2]
[391614311,1760706658590,-4800.0,0.00015234,2]
[391614312,1760706658600,-250.0,0.00015236,2]
[391614313,1760706658610,-500.0,0.00015236,2]
[391614314,1760706658620,-500.0,0.00015236,2]
[391614315,1760706658630,-500.0,0.00015236,2]
[391614316,1760706658640,-151.67894546,0.00015236,2]
[391614317,1760706658650,-680.24,0.00015236,2]
[391614318,1760706658660,-158.38,0.00015282,2]
[391614319,1760706658670,-12318.36988823,0.00015285,2]
[391614320,1760706658680,-500.0,0.00015291,2]
[391614321,1760706658691,-500.0,0.00015291,2]
[391614322,1760706658701,-500.0,0.00015291,2]
[391614323,1760706658711,-12774.14957409,0.0001534,2]
[391614324,1760706658720,-500.0,0.00015346,2]
[391614325,1760706659053,-500.0,0.00015346,2]
[391614326,1760706659081,-500.0,0.00015346,2]
[391614327,1760706659092,-175.74157208,0.00015393,2]
[391614328,1760706659102,-13246.79310833,0.00015395,2]
[391614329,1760706659111,-4800.0,0.00015397,2]
[391614330,1760706659122,-500.0,0.000154,2]
[391614331,1760706659132,-334.81885438,0.000154,2]
[391614332,1760706659142,-500.0,0.000154,2]
[391614333,1760706659152,-13736.92445334,0.0001545,2]
[391614334,1760706659162,-500.0,0.00015455,2]
[391614335,1760706659172,-500.0,0.00015455,2]
[391614336,1760706659182,-151.0,0.00015501,2]
[391614337,1760706659192,-500.0,0.0001551,2]
[391614338,1760706659202,-500.0,0.0001551,2]
[391614339,1760706659212,-680.24,0.0001551,2]
[391614340,1760706659221,-1000.0,0.00015521,2]
[391614341,1760706659231,-500.0,0.00015565,2]
[391614342,1760706659241,-500.0,0.00015565,2]
[391614343,1760706659250,-544.61299083,0.0001562,2]
[391614344,1760706659260,-500.0,0.0001562,2]
[391614345,1760706659270,-1119.19,0.00015663,2]
[391614346,1760706659280,-500.0,0.00015674,2]
[391614347,1760706659289,-1024.0,0.000157,3]
[391614348,1760706659299,-500.0,0.00015729,2]
[391614349,1760706659309,-4800.0,0.00015778,2]
[391614350,1760706659319,-500.0,0.00015784,2]
[391614351,1760706659329,-680.24,0.00015784,2]
[391614352,1760706659338,-4800.0,0.0001581,2]
[391614353,1760706659348,-541.0,0.00015839,2]
[391614354,1760706659358,-171.88,0.00015849,2]
[391614355,1760706659368,-339.85538,0.0001585,2]
[391614356,1760706659378,-255.0,0.00015971,2]
[391614357,1760706659389,-151.0,0.00016049,2]
[391614358,1760706659398,-680.24,0.00016058,2]
[391614359,1760706659408,-2500.0,0.0001606,2]
[391614360,1760706659418,-500.0,0.00016169,3]
[391614361,1760706659428,-195.0,0.00016169,2]
[391614362,1760706659437,-500.0,0.00016169,3]
[391614363,1760706659447,-201.61524051,0.00016189,2]
[391614364,1760706659457,-277.35679052,0.00016214,2]
[391614365,1760706659466,-5888.0,0.00016301,2]
[391614366,1760706659476,-334.5472959,0.00016322,2]
[391614367,1760706659486,-150.0,0.00016332,2]
[391614368,1760706659495,-680.24,0.00016332,2]
[391614369,1760706659506,-536.74,0.00016438,30]
[391614370,1760706659516,-151.0,0.00016438,2]
[391614371,1760706659526,-151.0,0.00016438,2]
[391614372,1760706659536,-151.0,0.00016438,2]
[391614373,1760706659546,-151.0,0.00016438,2]
[391614374,1760706659556,-209.479651,0.00016438,2]
[391614375,1760706659566,-162.72,0.0001644,2]
[391614376,1760706659575,-680.24,0.00016606,2]
[391614377,1760706659585,-339.85538,0.0001685,2]
[391614378,1760706659595,-680.29069631,0.0001688,2]
[391614379,1760706659605,-1000.0,0.000169,2]
[391614380,1760706659614,-1205.8266339,0.00016928,2]
[391614381,1760706659624,-2000.0,0.00017,7]
[391614382,1760706659633,-344.67383971,0.00017141,2]
[391614383,1760706659643,-433.0,0.00017188,2]
[391614384,1760706659653,-239.41404973,0.00017233,2]
[391614385,1760706659663,-695.27,0.00017243,2]
[391614386,1760706659673,-695.27,0.00017243,2]
[391614387,1760706659683,-712.78,0.00017243,2]
[391614388,1760706659694,-474.79,0.00017243,2]
[391614389,1760706659704,-695.27,0.00017243,2]
[391614390,1760706659714,-425.98,0.00017243,2]
[391614391,1760706659724,-540.5,0.00017243,2]
[391614392,1760706659739,-269.0562899,0.00017358,2]
[391614393,1760706659749,-1119.19,0.00017403,2]
[391614394,1760706659759,-54049.9317797,0.00017426,2]
[391614395,1760706659769,-33601.7443894,0.00017426,2]
[391614396,1760706659778,-287.61899177,0.00017583,2]
[391614397,1760706659788,-201.61524051,0.00017583,2]
[391614398,1760706659798,-414.64337729,0.00017584,2]
[391614399,1760706659808,-171.88,0.0001761,2]
[391614400,1760706659817,-346.92554585,0.00017691,2]
[391614401,1760706659827,-646.65982734,0.00017692,2]
[391614402,1760706659836,-150.0,0.00017702,2]
[391614403,1760706659846,-336.41,0.0001773,2]
[391614404,1760706659856,-168.96,0.00017749,2]
[391614405,1760706659866,-339.85538,0.0001785,2]
[391614406,1760706659876,-429.2603243,0.00017873,2]
[391614407,1760706659886,-12060.169934,0.00017968,2]
[391614408,1760706659895,-7497.5626068,0.00017968,2]
[391614409,1760706659906,-320.87930046,0.00018237,2]
[391614410,1760706659915,-183.89,0.00018244,2]
[391614411,1760706659926,-746.027,0.00018247,2]
[391614412,1760706659937,-746.027,0.00018247,2]
[391614413,1760706659947,-746.027,0.00018247,2]
[391614414,1760706659957,-746.027,0.00018247,2]
[391614415,1760706659967,-746.027,0.00018247,2]
[391614416,1760706659980,-746.027,0.00018247,2]
[391614417,1760706659990,-746.027,0.00018247,2]
[391614418,1760706660001,-746.027,0.00018247,2]
[391614419,1760706660011,-746.027,0.00018247,2]
[391614420,1760706660020,-746.027,0.00018247,2]
[391614421,1760706660030,-746.027,0.00018247,2]
[391614422,1760706660040,-746.027,0.00018247,2]
[391614423,1760706660050,-746.027,0.00018247,2]
[391614424,1760706660060,-746.027,0.00018247,2]
[391614425,1760706660071,-746.027,0.00018247,2]
[391614426,1760706660081,-746.027,0.00018247,2]
[391614427,1760706660090,-746.027,0.00018247,2]
[391614428,1760706660100,-746.027,0.00018247,2]
[391614429,1760706660110,-746.027,0.00018247,2]
[391614430,1760706660120,-746.02700116,0.00018247,2]
[391614431,1760706660130,-736.0,0.00018494,2]
[391614432,1760706660139,-1000.0,0.0001859,2]
[391614433,1760706660150,-475.6557911,0.00018645,2]
[391614434,1760706660160,-253.86211622,0.000187,2]
[391614435,1760706660171,-1591.58054587,0.000187,2]
[391614436,1760706660181,-300.77557689,0.000187,2]
[391614437,1760706660191,-212.96111083,0.000187,2]
[391614438,1760706660202,-339.85538,0.0001885,2]
[391614439,1760706660213,-253.86211622,0.000189,2]
[391614440,1760706660224,-1591.58054587,0.000189,2]
[391614441,1760706660239,-300.77557689,0.000189,2]
[391614442,1760706660249,-212.96111083,0.000189,2]
[391614443,1760706660258,-153.0,0.00018904,2]
[391614444,1760706660267,-153.0,0.00018904,2]
[391614445,1760706660278,-153.0,0.00018904,2]
[391614446,1760706660287,-153.0,0.00018904,2]
[391614447,1760706660298,-153.0,0.00018904,2]
[391614448,1760706660307,-153.0,0.00018904,2]
[391614449,1760706660317,-153.0,0.00018904,2]
[391614450,1760706660326,-153.0,0.00018904,2]
[391614451,1760706660335,-153.0,0.00018904,2]
[391614452,1760706660345,-153.0,0.00018904,2]
[391614453,1760706660354,-153.0,0.00018904,2]
[391614454,1760706660364,-153.0,0.00018904,2]
[391614455,1760706660374,-153.0,0.00018904,2]
[391614456,1760706660384,-153.0,0.00018904,2]
[391614457,1760706660396,-153.0,0.00018904,2]
[391614458,1760706660406,-153.0,0.00018904,2]
[391614459,1760706660415,-153.0,0.00018904,2]
[391614460,1760706660426,-153.0,0.00018904,2]
[391614461,1760706660436,-153.0,0.00018904,2]
[391614462,1760706660446,-153.0,0.00018904,2]
[391614463,1760706660456,-153.0,0.00018904,2]
[391614464,1760706660466,-153.0,0.00018904,2]
[391614465,1760706660476,-153.0,0.00018904,2]
[391614466,1760706660486,-153.0,0.00018904,2]
[391614467,1760706660497,-153.0,0.00018904,2]
[391614468,1760706660506,-298.26089446,0.00018952,2]
[391614469,1760706660516,-201.61524051,0.00018978,2]
[391614470,1760706660526,-220.18828492,0.00019,2]
[391614471,1760706660535,-91242.91879419,0.00019,2]
[391614472,1760706660545,-359.76179104,0.0001906,2]
[391614473,1760706660555,-250.0,0.00019072,2]
[391614474,1760706660565,-253.86211622,0.000191,2]
[391614475,1760706660575,-1591.58054587,0.000191,2]
[391614476,1760706660585,-300.77557689,0.000191,2]
[391614477,1760706660595,-212.96111083,0.000191,2]
[391614478,1760706660605,-1119.19,0.00019143,2]
[391614479,1760706660614,-151.0,0.00019178,2]
[391614480,1760706660624,-151.0,0.00019178,2]
[391614481,1760706660634,-151.0,0.00019178,2]
[391614482,1760706660644,-151.0,0.00019178,2]
[391614483,1760706660653,-151.0,0.00019178,2]
[391614484,1760706660663,-166.582358,0.00019178,2]
[391614485,1760706660672,-151.0,0.00019178,2]
[391614486,1760706660682,-151.0,0.00019178,2]
[391614487,1760706660691,-151.0,0.00019178,2]
[391614488,1760706660701,-151.0,0.00019178,2]
[391614489,1760706660711,-151.0,0.00019178,2]
[391614490,1760706660720,-151.0,0.00019178,2]
[391614491,1760706660732,-151.0,0.00019178,2]
[391614492,1760706660742,-151.0,0.00019178,2]
[391614493,1760706660751,-151.0,0.00019178,2]
[391614494,1760706660761,-151.0,0.00019178,2]
[391614495,1760706660771,-151.0,0.00019178,2]
[391614496,1760706660781,-151.0,0.00019178,2]
[391614497,1760706660790,-151.0,0.00019178,2]
[391614498,1760706660800,-151.0,0.00019178,2]
[391614499,1760706660809,-151.0,0.00019178,2]
[391614500,1760706660819,-151.0,0.00019178,2]
[391614501,1760706660828,-151.0,0.00019178,2]
[391614502,1760706660838,-151.0,0.00019178,2]
[391614503,1760706660848,-301.99999988,0.00019178,2]
[391614504,1760706660858,-200.0,0.00019178,2]
[391614505,1760706660868,-253.86211622,0.000192,2]
[391614506,1760706660877,-1591.58054587,0.000192,2]
[391614507,1760706660887,-300.77557689,0.000192,2]
[391614508,1760706660897,-212.96111083,0.000192,2]
[391614509,1760706660907,-546.55,0.00019217,2]
[391614510,1760706660917,-150.92,0.00019217,2]
[391614511,1760706660928,-4092.149,0.00019292,2]
[391614512,1760706660939,-202.581,0.00019292,2]
[391614513,1760706660948,-171.88,0.00019371,2]
[391614514,1760706660958,-344.67383971,0.00019391,2]
[391614515,1760706660967,-253.86211622,0.000194,2]
[391614516,1760706660978,-1591.58054587,0.000194,2]
[391614517,1760706660988,-300.77557689,0.000194,2]
[391614518,1760706660997,-212.96111083,0.000194,2]
[391614519,1760706661008,-902.0,0.00019609,2]
[391614520,1760706661019,-1183.0,0.00019609,2]
[391614521,1760706661028,-2687.094,0.00019637,2]
[391614522,1760706661038,-3356.0,0.00019637,2]
[391614523,1760706661048,-6436.0,0.00019637,2]
[391614524,1760706661059,-557.0,0.00019637,2]
[391614525,1760706661069,-6445.0,0.00019637,2]
[391614526,1760706661078,-693.9,0.00019661,2]
[391614527,1760706661089,-1982.0,0.000197,2]
[391614528,1760706661099,-34504.14,0.00019726,2]
[391614529,1760706661109,-400.0,0.00019726,2]
[391614530,1760706661119,-161.0,0.000198,3]
[391614531,1760706661130,-160.83,0.000198,3]
[391614532,1760706661140,-339.85538,0.0001985,2]
[391614533,1760706661150,-1130.0,0.00019889,2]
[391614534,1760706661160,-1000.0,0.0002,4]
[391614535,1760706661170,-15805.65623738,0.0002,14]
[391614536,1760706661180,-447.48,0.00020187,2]
[391614537,1760706661190,-600.0,0.00020274,2]
[391614538,1760706661200,-1000.0,0.0002028,2]
[391614539,1760706661211,-309.29654756,0.00020321,2]
[391614540,1760706661221,-201.61524051,0.00020373,2]
[391614541,1760706661234,-151.00289445,0.00020429,2]
[391614542,1760706661244,-150.0,0.00020648,2]
[391614543,1760706661254,-150.0,0.00020648,2]
[391614544,1760706661263,-207.0,0.00020648,2]
[391614545,1760706661273,-150.0,0.00020648,2]
[391614546,1760706661283,-150.0,0.00020648,2]
[391614547,1760706661292,-150.243,0.00020648,2]
[391614548,1760706661302,-150.0,0.00020648,2]
[391614549,1760706661311,-150.103,0.00020648,2]
[391614550,1760706661320,-150.0,0.00020648,2]
[391614551,1760706661330,-150.079,0.00020648,2]
[391614552,1760706661339,-150.0,0.00020648,2]
[391614553,1760706661349,-150.0,0.00020648,2]
[391614554,1760706661359,-2050.0,0.00020648,2]
[391614555,1760706661368,-3408.0,0.00020648,2]
[391614556,1760706661378,-1267.0,0.00020648,2]
[391614557,1760706661388,-771.264,0.00020648,2]
[391614558,1760706661397,-571.0,0.00020648,2]
[391614559,1760706661407,-1589.0,0.00020648,2]
[391614560,1760706661416,-605.0,0.00020648,2]
[391614561,1760706661426,-1310.0,0.00020648,2]
[391614562,1760706661436,-816.0,0.00020648,2]
[391614563,1760706661446,-18819.52601407,0.000207,2]
[391614564,1760706661456,-500.0,0.00020822,2]
[391614565,1760706661465,-429.2603243,0.00020845,2]
[391614566,1760706661475,-31222.37119782,0.0002085,2]
[391614567,1760706661572,-1329.48,0.00020851,2]
[391614568,1760706661581,-183.89,0.00020869,2]
[391614569,1760706661591,-1119.19,0.00020884,2]
[391614570,1760706661600,-9852.83406177,0.000209,30]
[391614571,1760706661610,-370.11858813,0.000209,30]
[391614572,1760706661620,-171.88,0.00021132,2]
[391614573,1760706661629,-301.46,0.00021178,2]
[391614574,1760706661639,-199.59504144,0.00021179,13]
[391614575,1760706661648,-300.77,0.00021287,2]
[391614576,1760706661658,-1199.37,0.00021354,2]
[391614577,1760706661667,-1199.37,0.00021354,2]
[391614578,1760706661677,-536.74,0.0002142,30]
[391614579,1760706661687,-150.0,0.00021479,2]
[391614580,1760706661696,-150.0,0.00021479,2]
[391614581,1760706661706,-150.0,0.00021479,2]
[391614582,1760706661715,-150.0,0.00021479,2]
[391614583,1760706661725,-150.0,0.00021479,2]
[391614584,1760706661735,-8654.99690734,0.000215,2]
[391614585,1760706661744,-344.67383971,0.00021642,2]
[391614586,1760706661753,-1199.37,0.00021683,2]
[391614587,1760706661763,-1199.37,0.00021683,2]
[391614588,1760706661772,-1199.37,0.00021683,2]
[391614589,1760706661781,-1199.37,0.00021683,2]
[391614590,1760706661791,-1199.37,0.00021683,2]
[391614591,1760706661800,-1199.37,0.00021683,2]
[391614592,1760706661810,-1199.37,0.00021683,2]
[391614593,1760706661820,-320.74051982,0.0002169,2]
[391614594,1760706661829,-201.61524051,0.00021768,2]
[391614595,1760706661838,-210.0,0.00021768,2]
[391614596,1760706661848,-1300.0,0.00021917,2]
[391614597,1760706661857,-10000.0,0.00021917,2]
[391614598,1760706661867,-615.84,0.00021917,2]
[391614599,1760706661876,-615.84,0.00021917,2]
[391614600,1760706661886,-615.84,0.00021917,2]
[391614601,1760706661895,-615.84,0.00021917,2]
[391614602,1760706661904,-615.84,0.00021917,2]
[391614603,1760706661913,-615.84,0.00021917,2]
[391614604,1760706661922,-615.84,0.00021917,2]
[391614605,1760706661936,-615.84,0.00021917,2]
[391614606,1760706661946,-615.84,0.00021917,2]
[391614607,1760706661955,-615.84,0.00021917,2]
[391614608,1760706661966,-615.84,0.00021917,2]
[391614609,1760706661977,-615.84,0.00021917,2]
[391614610,1760706661986,-615.84,0.00021917,2]
[391614611,1760706661996,-615.84,0.00021917,2]
[391614612,1760706662008,-615.84,0.00021917,2]
[391614613,1760706662018,-615.84,0.00021917,2]
[391614614,1760706662028,-615.84,0.00021917,2]
[391614615,1760706662038,-615.84,0.00021917,2]
[391614616,1760706662048,-615.84,0.00021917,2]
[391614617,1760706662058,-615.84,0.00021917,2]
[391614618,1760706662068,-615.84,0.00021917,2]
[391614619,1760706662078,-615.84,0.00021917,2]
[391614620,1760706662087,-615.84,0.00021917,2]
[391614621,1760706662097,-615.94419433,0.00021917,2]
[391614622,1760706662107,-5000.0,0.00021918,2]
[391614623,1760706662117,-151.0,0.00021918,7]
[391614624,1760706662127,-151.0,0.00021918,7]
[391614625,1760706662137,-151.0,0.00021918,7]
[391614626,1760706662146,-151.0,0.00021918,7]
[391614627,1760706662156,-151.0,0.00021918,7]
[391614628,1760706662166,-151.00000049,0.00021918,7]
[391614629,1760706662175,-5249.91846524,0.00022,4]
[391614630,1760706662185,-14928.46,0.00022,7]
[391614631,1760706662197,-1419.0,0.000221,2]
[391614632,1760706662208,-3000.0,0.00022191,2]
[391614633,1760706662219,-168.0,0.00022271,2]
[391614634,1760706662230,-150.0,0.0002239,2]
[391614635,1760706662240,-3708.43342937,0.0002239,2]
[391614636,1760706662250,-210.0,0.00022464,2]
[391614637,1760706662261,-1100.0,0.00022465,2]
[391614638,1760706662271,-1199.37,0.00022505,2]
[391614639,1760706662281,-1199.37,0.00022505,2]
[391614640,1760706662290,-1199.37,0.00022505,2]
[391614641,1760706662300,-1199.37,0.00022505,2]
[391614642,1760706662309,-1199.37,0.00022505,2]
[391614643,1760706662319,-1199.37,0.00022505,2]
[391614644,1760706662328,-1199.37,0.00022505,2]
[391614645,1760706662338,-1199.37,0.00022505,2]
[391614646,1760706662347,-1199.37,0.00022505,2]
[391614647,1760706662356,-1199.37,0.00022505,2]
[391614648,1760706662366,-1199.37,0.00022505,2]
[391614649,1760706662375,-1199.37,0.00022505,2]
[391614650,1760706662384,-1199.37,0.00022505,2]
[391614651,1760706662394,-1199.37,0.00022505,2]
[391614652,1760706662403,-1199.37,0.00022505,2]
[391614653,1760706662414,-1199.37,0.00022505,2]
[391614654,1760706662423,-1199.37,0.00022505,2]
[391614655,1760706662433,-1199.37,0.00022505,2]
[391614656,1760706662443,-1199.37,0.00022505,2]
[391614657,1760706662452,-1199.37,0.00022505,2]
[391614658,1760706662462,-1199.37,0.00022505,2]
[391614659,1760706662471,-1199.37,0.00022505,2]
[391614660,1760706662483,-1199.37,0.00022505,2]
[391614661,1760706662492,-3075.45673189,0.00022506,2]
[391614662,1760706662502,-4000.0,0.00022562,2]
[391614663,1760706662512,-6395.43,0.00022562,2]
[391614664,1760706662522,-200.430518,0.000226,2]
[391614665,1760706662532,-5512.0,0.000226,3]
[391614666,1760706662541,-902.0,0.00022609,2]
[391614667,1760706662551,-1183.0,0.00022609,2]
[391614668,1760706662560,-2546.0,0.00022637,2]
[391614669,1760706662570,-658.0,0.00022637,2]
[391614670,1760706662579,-6436.0,0.00022637,2]
[391614671,1760706662589,-557.0,0.00022637,2]
[391614672,1760706662598,-6445.0,0.00022637,2]
[391614673,1760706662607,-168.0,0.0002283,2]
[391614674,1760706662617,-168.0,0.00022936,2]
[391614675,1760706662626,-416.66886798,0.00022965,2]
[391614676,1760706662635,-168.0,0.00023003,2]
[391614677,1760706662644,-1300.0,0.00023013,2]
[391614678,1760706662654,-168.0,0.0002303,2]
[391614679,1760706662663,-168.0,0.00023053,2]
[391614680,1760706662673,-436.24627345,0.00023059,2]
[391614681,1760706662682,-1006.0,0.000231,2]
[391614682,1760706662692,-5512.0,0.000231,5]
[391614683,1760706662702,-168.0,0.000231,2]
[391614684,1760706662711,-1505.0,0.00023118,2]
[391614685,1760706662720,-168.0,0.00023132,2]
[391614686,1760706662730,-201.61524051,0.00023162,2]
[391614687,1760706662739,-168.24,0.00023243,2]
[391614688,1760706662749,-168.24,0.00023243,2]
[391614689,1760706662758,-168.24,0.00023243,2]
[391614690,1760706662768,-3000.0,0.00023287,2]
[391614691,1760706662777,-1982.20537727,0.000234,2]
[391614692,1760706662787,-1505.0,0.00023421,2]
[391614693,1760706662796,-168.0,0.00023495,2]
[391614694,1760706662806,-168.0,0.00023504,2]
[391614695,1760706662815,-168.0,0.00023511,2]
[391614696,1760706662825,-1100.0,0.00023561,2]
[391614697,1760706662834,-150.0,0.00023648,2]
[391614698,1760706662843,-150.0,0.00023648,2]
[391614699,1760706662854,-150.0,0.00023648,2]
[391614700,1760706662863,-150.0,0.00023648,2]
[391614701,1760706662873,-150.0,0.00023648,2]
[391614702,1760706662882,-150.0,0.00023648,2]
[391614703,1760706662891,-150.0,0.00023648,2]
[391614704,1760706662901,-150.0,0.00023648,2]
[391614705,1760706662910,-150.0,0.00023648,2]
[391614706,1760706662919,-150.0,0.00023648,2]
[391614707,1760706662933,-150.0,0.00023648,2]
[391614708,1760706662942,-2050.0,0.00023648,2]
[391614709,1760706662952,-3408.0,0.00023648,2]
[391614710,1760706662962,-1267.0,0.00023648,2]
[391614711,1760706662972,-749.0,0.00023648,2]
[391614712,1760706662983,-571.0,0.00023648,2]
[391614713,1760706662994,-1589.0,0.00023648,2]
[391614714,1760706663005,-605.0,0.00023648,2]
[391614715,1760706663015,-1310.0,0.00023648,2]
[391614716,1760706663024,-816.0,0.00023648,2]
[391614717,1760706663033,-168.0,0.00023649,2]
[391614718,1760706663043,-14928.46,0.000237,7]
[391614719,1760706663053,-429.2603243,0.00023818,2]
[391614720,1760706663062,-150.0,0.00023835,2]
[391614721,1760706663072,-166.34,0.00023836,2]
[391614722,1760706663082,-608.81559505,0.00023861,2]
[391614723,1760706663092,-183.89,0.00023863,2]
[391614724,1760706663102,-154.46120971,0.0002387,2]
[391614725,1760706663113,-195828.54619083,0.00023871,2]
[391614726,1760706663122,-21567.37094101,0.00023874,2]
[391614727,1760706663132,-21567.37094101,0.00023879,2]
[391614728,1760706663142,-146501.21800219,0.0002388,2]
[391614729,1760706663152,-21567.37094101,0.00023883,2]
[391614730,1760706663162,-608.81559505,0.00023885,2]
[391614731,1760706663172,-608.81559505,0.00023892,2]
[391614732,1760706663181,-344.67383971,0.00023892,2]
[391614733,1760706663191,-13376.95305066,0.00023894,2]
[391614734,1760706663201,-195828.54619083,0.00023899,2]
[391614735,1760706663211,-1220.0,0.000239,2]
[391614736,1760706663221,-11954.35354148,0.00023907,2]
[391614737,1760706663233,-13376.95305066,0.00023914,2]
[391614738,1760706663243,-195828.54619083,0.0002393,2]
[391614739,1760706663253,-154.46120971,0.00023941,2]
[391614740,1760706663264,-11954.35354148,0.00023942,2]
[391614741,1760706663274,-21567.37094101,0.00023945,2]
[391614742,1760706663283,-62530.19615614,0.0002395,2]
[391614743,1760706663297,-608.81559505,0.00023951,2]
[391614744,1760706663307,-154.46120971,0.00023954,2]
[391614745,1760706663317,-62530.19615614,0.00023955,2]
[391614746,1760706663326,-11954.35354148,0.00023962,2]
[391614747,1760706663336,-13376.95305066,0.00023962,2]
[391614748,1760706663346,-62530.19615614,0.00023967,2]
[391614749,1760706663356,-154.46120971,0.00023977,2]
[391614750,1760706663367,-62530.19615614,0.00023982,2]
[391614751,1760706663377,-11954.35354148,0.00023984,2]
[391614752,1760706663386,-13376.95305066,0.00023988,2]
[391614753,1760706663397,-195828.54619083,0.00023996,2]
[391614754,1760706663408,-2000.0,0.00024,3]
[391614755,1760706663417,-390.296706,0.00024,2]
[391614756,1760706663427,-2000.0,0.00024,2]
[391614757,1760706663440,-2368.323307,0.0002401,2]
[391614758,1760706663450,-200.0,0.000241,7]
[391614759,1760706663460,-1300.0,0.00024109,2]
[391614760,1760706663470,-183.89,0.00024231,2]
[391614761,1760706663480,-2472240.16532082,0.00024257,2]
[391614762,1760706663490,-501.26726669,0.00024273,2]
[391614763,1760706663500,-501.37940019,0.00024273,2]
[391614764,1760706663511,-501.2555985,0.00024273,2]